bitfinex/quotes_ETHUSD_20240614
["timestamp","ask_amount","ask_price","bid_price","bid_amount"]
[1718328739958,7.278,3471.9,3471.4,0.41177483]
[1718328740182,0.847,3471.8,3471.4,0.41177483]
[1718328740396,0.847,3471.8,3471.4,0.27293546]
[1718328742232,0.847,3471.6,3471.4,0.27293546]
[1718328742367,0.847,3471.6,3471.2,2.3198]
[1718328742710,0.847,3471.8,3471.2,2.3198]
[1718328745077,0.847,3471.8,3471.3,0.13891025]
[1718328745390,0.847,3471.8,3471.2,2.3198]
[1718328745586,0.847,3471.8,3471.3,0.23198]
[1718328745786,22.658,3472.3,3471.3,0.23198]
[1718328745787,0.847,3471.6,3471.3,0.23198]
[1718328745994,0.847,3471.6,3471.2,2.3198]
[1718328746194,0.847,3471.6,3471.4,0.13887329]
[1718328746380,0.847,3471.6,3471.3,0.13886179]
[1718328746567,0.847,3471.6,3471.5,0.13879757]
[1718328746769,0.847,3471.6,3471.4,0.13883452]
[1718328747004,0.847,3471.6,3471.5,0.13879757]
[1718328747396,0.847,3471.6,3470.9,2.2517]
[1718328747719,0.847,3471.6,3471.0,0.22517]
[1718328747872,0.847,3471.6,3471.0,0.36415237]
[1718328748306,0.847,3471.1,3471.0,0.13898237]
[1718328748716,0.847,3471.1,3470.6,2.4348]
[1718328748896,0.847,3471.1,3471.0,0.13907446]
[1718328749093,0.847,3471.1,3470.6,2.4348]
[1718328749296,0.847,3471.1,3471.0,0.13912777]
[1718328749495,0.847,3471.1,3470.6,2.4348]
[1718328749672,0.847,3471.1,3471.0,0.13913747]
[1718328749872,0.847,3471.1,3470.7,0.24348]
[1718328750164,0.847,3471.1,3471.0,0.13913747]
[1718328750418,0.847,3471.1,3470.6,2.4348]
[1718328750576,0.847,3471.1,3471.0,0.13913747]
[1718328750776,0.847,3471.1,3470.2,2.90455354]
[1718328751087,0.847,3471.1,3470.3,0.60506024]
[1718328752882,0.847,3470.9,3470.3,0.60506024]
[1718328753081,0.847,3470.9,3470.3,0.13953685]
[1718328754732,0.847,3470.7,3470.3,0.13953685]
[1718328754893,0.847,3470.5,3469.9,2.3183]
[1718328755100,0.847,3470.5,3470.4,0.13955803]
[1718328755304,0.847,3470.5,3469.9,2.3183]
[1718328755588,0.847,3470.5,3470.0,0.25558295]
[1718328755782,0.847,3470.5,3470.0,0.39541012]
[1718328756602,0.847,3470.3,3470.0,0.13982717]
[1718328756927,0.847,3470.1,3470.0,0.13982717]
[1718328757101,0.847,3470.1,3469.5,2.3523]
[1718328757305,0.847,3470.1,3469.1,3.60245354]
[1718328757306,0.847,3470.1,3470.0,0.1398902]
[1718328757490,3.1902,3470.1,3469.1,2.449]
[1718328757685,0.847,3469.6,3469.1,2.449]
[1718328758219,0.847,3469.6,3468.7,2.4685]
[1718328758434,0.847,3469.4,3468.7,2.4685]
[1718328758613,0.847,3469.2,3468.3,0.60245354]
[1718328758935,0.847,3469.2,3468.4,0.05765395]
[1718328759133,0.847,3469.2,3468.4,0.3373154]
[1718328759726,0.847,3469.0,3467.8,2.3023]
[1718328759903,0.847,3469.0,3468.0,0.847]
[1718328760492,2.2761,3469.2,3468.0,0.847]
[1718328760692,0.847,3469.0,3468.2,0.847]
[1718328760892,7.278,3469.3,3467.9,1.43344514]
[1718328761096,2.2761,3469.6,3468.0,0.37357451]
[1718328761097,2.035,3469.4,3468.0,0.37357451]
[1718328761324,1.43344514,3469.3,3467.8,2.3023]
[1718328761728,4.43344514,3469.3,3467.8,2.3023]
[1718328762116,4.43344514,3469.3,3467.9,0.05766213]
[1718328762317,1.43344514,3469.3,3467.9,0.05766213]
[1718328762534,4.43344514,3469.3,3467.9,0.05766213]
[1718328762697,0.94684451,3469.2,3467.9,0.29365834]
[1718328762898,2.38028965,3469.2,3468.0,0.05766213]
[1718328763104,3.0,3469.3,3468.0,0.05766213]
[1718328763307,3.0,3469.5,3468.1,0.14170382]
[1718328763633,3.0,3469.5,3467.9,0.23599621]
[1718328763634,4.43344514,3469.5,3467.9,0.23599621]
[1718328764002,4.43344514,3469.5,3468.0,0.14174085]
[1718328764199,3.0,3469.5,3468.1,0.05765732]
[1718328764398,3.0,3469.5,3468.3,2.4177]
[1718328764714,3.0,3469.5,3468.4,0.19992598]
[1718328765029,3.0,3469.5,3468.5,0.05765416]
[1718328765240,3.0,3469.5,3468.3,2.4177]
[1718328765409,3.0,3469.5,3468.4,0.2604584]
[1718328765613,3.0,3469.5,3468.4,0.40273024]
[1718328765815,3.0,3469.5,3468.5,0.05765417]
[1718328766212,3.0,3469.5,3468.6,0.1421978]
[1718328774145,3.0,3469.5,3468.7,2.4358]
[1718328774339,3.0,3469.5,3468.8,0.2635652]
[1718328774539,3.0,3469.5,3468.8,0.405655]
[1718328776307,3.0,3469.5,3468.8,0.1420898]
[1718328776511,3.0,3469.5,3468.7,2.4358]
[1718328776748,3.0,3469.5,3468.9,0.14205279]
[1718328776934,3.0,3469.5,3468.7,2.4358]
[1718328777134,3.0,3469.5,3469.0,0.14201578]
[1718328777445,1.0278,3469.4,3468.7,2.4358]
[1718328777751,1.43344514,3469.3,3468.8,0.13732507]
[1718328778261,1.43344514,3469.3,3467.9,2.67179621]
[1718328778616,4.43344514,3469.3,3468.0,0.13772801]
[1718328780056,4.43344514,3469.3,3468.0,0.19539223]
[1718328780242,4.43344514,3469.3,3468.1,0.28671884]
[1718328780549,3.46844514,3469.3,3468.2,0.13771704]
[1718328780762,1.43344514,3469.3,3468.2,0.13771704]
[1718328781121,1.43344514,3469.3,3468.1,0.28671884]
[1718328781350,1.43344514,3469.3,3468.3,0.13769458]
[1718328781551,1.43344514,3469.3,3468.1,0.28671884]
[1718328781726,1.43344514,3469.3,3468.2,0.30161793]
[1718328782049,3.0,3469.4,3468.4,2.4926]
[1718328782550,3.0,3469.4,3468.5,0.13760598]
[1718328782741,3.0,3469.5,3468.5,0.13760598]
[1718328783051,0.848,3469.0,3468.4,2.4926]
[1718328783255,0.848,3469.0,3468.5,0.27942179]
[1718328783445,0.848,3469.0,3468.5,0.41695496]
[1718328783965,4.43344514,3469.5,3468.5,0.41695496]
[1718328783966,0.848,3468.8,3468.5,0.13753317]
[1718328784367,0.848,3468.6,3468.0,2.4202]
[1718328784742,0.848,3468.6,3468.1,0.13782687]
[1718328785435,0.848,3468.4,3468.1,0.13782687]
[1718328785679,0.848,3468.2,3468.1,0.13782687]
[1718328786174,0.848,3468.2,3467.3,2.4354]
[1718328786370,0.848,3468.0,3467.4,0.24354]
[1718328786843,5.78144514,3468.6,3467.4,0.24354]
[1718328787037,4.43344514,3468.5,3467.3,2.4354]
[1718328787346,0.55,3468.4,3467.3,2.4354]
[1718328787545,1.43344514,3468.3,3467.3,2.4354]
[1718328788938,2.037,3468.2,3467.3,2.4354]
[1718328789250,1.43344514,3468.1,3467.3,2.4354]
[1718328789646,4.43344514,3468.1,3467.3,2.4354]
[1718328789842,2.037,3467.4,3466.7,2.3281]
[1718328790388,7.278,3467.7,3466.7,2.3281]
[1718328791032,1.43344514,3467.6,3466.7,2.3281]
[1718328791227,1.07484451,3467.5,3465.6,3.09063528]
[1718328791506,1.07484451,3467.5,3465.8,2.2655]
[1718328791507,1.43344514,3467.4,3465.8,2.2655]
[1718328791790,1.43344514,3467.4,3465.9,0.13512378]
[1718328792080,6.79074514,3467.4,3465.9,0.13512378]
[1718328792265,10.34210411,3467.4,3466.0,0.38340689]
[1718328792612,10.34210411,3467.4,3466.1,0.13504963]
[1718328793077,0.55,3467.3,3466.1,0.13504963]
[1718328793387,1.43344514,3467.2,3466.1,0.13504963]
[1718328793690,1.08921041,3467.1,3466.0,0.38340689]
[1718328793860,1.43344514,3467.0,3466.0,0.38340689]
[1718328794050,4.43344514,3467.0,3466.0,0.38340689]
[1718328794583,6.47044514,3467.0,3465.8,2.2655]
[1718328797482,6.47044514,3467.0,3465.9,0.05769831]
[1718328798295,6.47044514,3467.0,3465.8,2.2655]
[1718328800648,2.037,3466.6,3465.2,2.3297]
[1718328800848,2.037,3466.6,3465.3,0.53297]
[1718328801059,2.037,3466.6,3465.3,0.6689283]
[1718328801312,2.037,3466.2,3465.3,0.1359583]
[1718328801447,1.43344514,3466.1,3465.3,0.1359583]
[1718328801643,1.43344514,3466.1,3464.8,2.4291]
[1718328801950,1.43344514,3466.1,3464.9,0.13610667]
[1718328802143,0.55,3466.0,3464.8,2.4291]
[1718328802462,4.5102,3465.8,3464.3,2.4291]
[1718328802804,4.5102,3465.8,3464.4,0.13629219]
[1718328802947,3.0,3465.7,3464.4,0.13629219]
[1718328803155,5.037,3465.7,3464.4,0.13629219]
[1718328803481,6.47044514,3465.7,3464.5,0.05772009]
[1718328803669,6.47044514,3465.7,3464.5,0.26231123]
[1718328803875,6.47044514,3465.7,3464.6,0.13621797]
[1718328804201,6.47044514,3465.7,3464.5,0.26231123]
[1718328804482,6.47044514,3465.7,3464.7,0.13618087]
[1718328804691,6.47044514,3465.7,3464.6,0.13621797]
[1718328804865,6.47044514,3465.7,3464.6,0.28276292]
[1718328805060,1.43344514,3465.6,3464.3,2.4291]
[1718328805262,2.037,3465.2,3464.0,0.60245354]
[1718328805455,3.74924514,3465.1,3464.4,0.13629219]
[1718328805788,2.037,3464.8,3464.0,0.60245354]
[1718328805999,2.037,3464.4,3464.0,0.60245354]
[1718328807176,2.3639,3464.2,3463.8,0.90368032]
[1718328807503,2.037,3463.9,3463.6,1.20490709]
[1718328807718,0.55,3463.8,3463.5,1.50024027]
[1718328807893,2.037,3463.6,3463.5,1.50024027]
[1718328808079,3.47044514,3463.6,3461.8,2.3403]
[1718328808414,1.43344514,3463.3,3461.2,3.48707644]
[1718328808558,6.804,3463.1,3461.2,3.48707644]
[1718328808760,3.55,3463.0,3461.2,3.48707644]
[1718328809059,1.78844514,3462.9,3461.2,3.48707644]
[1718328809475,2.037,3462.7,3461.2,3.48707644]
[1718328809688,1.43344514,3462.6,3461.2,3.48707644]
[1718328810057,4.43344514,3462.6,3461.2,3.48707644]
[1718328810294,4.43344514,3462.6,3462.5,2.43102235]
[1718328810497,7.07418965,3462.6,3462.2,2.93892266]
[1718328810792,7.278,3462.9,3461.2,3.48707644]
[1718328810992,7.278,3463.2,3462.3,0.10996269]
[1718328811296,7.278,3463.5,3461.8,0.05775857]
[1718328811530,8.71144514,3463.5,3461.8,0.05775857]
[1718328811725,8.71144514,3463.5,3461.9,0.64912317]
[1718328812042,8.71144514,3463.5,3462.0,0.05775706]
[1718328812336,7.278,3463.8,3462.1,4.32184514]
[1718328812640,8.71144514,3463.8,3462.2,0.10999984]
[1718328812895,8.71144514,3463.8,3462.3,0.1543445]
[1718328812896,5.43624514,3463.7,3462.3,0.1543445]
[1718328813032,2.037,3463.3,3462.2,0.10999984]
[1718328813354,2.037,3463.3,3461.9,0.53901186]
[1718328813355,2.037,3463.3,3462.3,0.05776223]
[1718328813570,1.43344514,3463.2,3461.9,0.53901186]
[1718328813711,2.037,3462.9,3461.7,2.4436]
[1718328813913,0.34704451,3463.1,3461.7,3.87704514]
[1718328814141,0.34704451,3463.1,3461.8,0.11014848]
[1718328814346,1.43344514,3463.0,3461.8,0.11014848]
[1718328814859,3.0,3463.2,3461.9,0.05776491]
[1718328815173,1.43344514,3463.1,3461.9,0.31891625]
[1718328815893,3.0,3463.3,3461.9,0.31891625]
[1718328816151,1.9658,3463.7,3462.1,2.88841]
[1718328816334,7.278,3463.8,3462.3,2.88825]
[1718328816535,7.278,3463.8,3462.4,1.60354482]
[1718328816734,7.278,3463.8,3462.5,0.44917948]
[1718328816948,7.278,3463.8,3462.6,0.05774709]
[1718328817140,7.278,3463.8,3462.7,0.11224116]
[1718328817333,7.278,3463.8,3462.8,0.0577471]
[1718328817541,7.278,3463.8,3462.9,0.11216688]
[1718328818054,1.43344514,3463.7,3462.9,0.11216688]
[1718328818232,1.43344514,3463.7,3462.5,0.44917948]
[1718328818442,1.43344514,3463.7,3463.0,0.11212974]
[1718328818739,4.43344514,3463.7,3462.0,3.0]
[1718328818939,4.43344514,3463.7,3462.1,0.16557241]
[1718328819777,7.278,3463.8,3462.2,3.47044514]
[1718328820084,7.278,3463.8,3462.5,2.45]
[1718328820378,7.278,3463.8,3462.6,6.52379133]
[1718328820664,7.278,3463.8,3462.7,3.0]
[1718328820820,2.037,3464.6,3462.7,3.0]
[1718328820821,7.278,3464.1,3462.8,0.05774283]
[1718328821018,7.278,3464.1,3462.8,0.16550767]
[1718328821222,7.278,3464.1,3462.9,0.74869028]
[1718328821460,7.278,3464.1,3463.0,0.05774284]
[1718328821846,7.278,3464.1,3463.1,0.10765343]
[1718328822164,7.278,3464.1,3463.2,0.05774285]
[1718328822456,7.278,3464.1,3463.2,0.16535914]
[1718328822833,7.278,3464.4,3463.3,0.05774287]
[1718328823036,7.278,3464.4,3463.4,0.15988043]
[1718328823255,7.278,3464.7,3463.5,0.05773521]
[1718328823420,7.278,3464.7,3463.6,2.3817]
[1718328823752,7.278,3464.7,3463.7,0.05773039]
[1718328823938,7.278,3464.7,3463.8,0.164643]
[1718328824134,8.0058,3464.7,3463.8,0.164643]
[1718328825028,8.0058,3464.7,3463.8,0.10691261]
[1718328825390,8.0058,3464.7,3463.9,0.10669097]
[1718328825591,8.0058,3464.7,3463.6,2.3817]
[1718328825750,8.0058,3464.7,3464.0,0.10665385]
[1718328825949,0.80058,3464.6,3463.6,2.3817]
[1718328826151,0.80058,3464.6,3463.7,0.10676521]
[1718328826351,1.43344514,3464.5,3463.0,2.3746]
[1718328826595,1.43344514,3464.5,3463.1,0.10698798]
[1718328826761,2.037,3464.4,3463.1,0.10698798]
[1718328826963,4.59544765,3464.3,3462.4,2.3746]
[1718328827304,3.0,3464.2,3463.2,0.10695085]
[1718328827451,3.0,3464.2,3461.4,1.96309757]
[1718328827452,2.037,3464.0,3461.8,2.4137]
[1718328827659,1.43344514,3463.9,3463.3,0.10691371]
[1718328827852,1.43344514,3463.9,3462.0,2.88847]
[1718328828197,0.64704451,3463.8,3462.1,4.20175693]
[1718328828359,0.64704451,3463.8,3462.1,4.25136609]
[1718328828565,1.43344514,3463.7,3462.1,0.78092095]
[1718328828901,1.43344514,3463.7,3462.1,0.10735944]
[1718328829105,3.0,3463.9,3462.2,1.49120027]
[1718328829311,1.43344514,3463.9,3462.3,0.0577508]
[1718328829610,1.43344514,3463.9,3462.3,0.16503593]
[1718328830202,3.0,3464.2,3462.4,1.43344514]
[1718328830388,2.98114539,3464.1,3462.5,0.50641575]
[1718328830600,3.0,3464.0,3462.5,0.61370432]
[1718328830808,4.43344514,3464.0,3462.5,0.61370432]
[1718328830967,1.54770025,3464.1,3462.7,2.2861]
[1718328831312,1.54770025,3464.1,3462.8,0.98356856]
[1718328831524,7.278,3464.3,3462.8,1.09074569]
[1718328831723,1.43344514,3464.2,3462.8,1.09074569]
[1718328832039,7.278,3464.3,3462.8,1.09074569]
[1718328832314,8.07858,3464.6,3462.9,6.35815514]
[1718328832471,8.71144514,3464.6,3463.0,0.05773933]
[1718328832673,8.71144514,3464.6,3463.0,3.16484218]
[1718328833511,7.278,3464.6,3463.1,4.32100514]
[1718328833669,7.278,3464.6,3463.2,0.80632007]
[1718328833868,7.278,3464.6,3463.3,0.05773534]
[1718328834293,7.278,3464.6,3463.4,0.10695432]
[1718328834569,7.278,3464.9,3463.5,0.05773535]
[1718328834781,2.46124514,3464.8,3463.5,0.16465254]
[1718328835273,5.46124514,3464.8,3463.5,0.16465254]
[1718328835469,5.46124514,3464.8,3463.6,0.05773535]
[1718328835869,5.46124514,3464.8,3463.7,0.10684294]
[1718328836974,7.34035191,3464.8,3463.7,0.10684294]
[1718328837286,1.46183519,3464.7,3462.9,3.0]
[1718328837485,1.43344514,3464.6,3463.0,0.05774337]
[1718328837693,4.43344514,3464.6,3463.0,0.16488021]
[1718328837992,4.43344514,3464.6,3463.0,0.05774337]
[1718328839215,3.0,3464.6,3463.1,1.43344514]
[1718328839407,7.278,3464.9,3463.2,0.50685272]
[1718328839408,3.0,3464.8,3463.2,0.50685272]
[1718328839571,3.0,3464.8,3463.3,1.49117901]
[1718328839775,3.0,3464.8,3463.3,1.59801011]
[1718328840290,1.43344514,3464.7,3463.3,0.1068311]
[1718328840689,1.38094403,3464.6,3463.3,0.1068311]
[1718328840878,2.26849316,3464.5,3462.8,3.92582295]
[1718328841075,5.26849316,3464.5,3463.4,0.10678912]
[1718328841287,5.26849316,3464.5,3463.0,0.05774055]
[1718328841512,2.26849316,3464.5,3463.5,0.10674228]
[1718328841692,2.26849316,3464.5,3462.9,1.43344514]
[1718328841693,3.0,3464.4,3462.9,1.43344514]
[1718328842007,0.82684932,3464.4,3463.0,1.36395575]
[1718328842213,3.82684932,3464.4,3463.0,1.36395575]
[1718328842372,0.82684932,3464.4,3463.0,1.36395575]
[1718328844813,3.0,3464.6,3463.2,2.3837]
[1718328844992,3.0,3464.8,3463.3,1.49117909]
[1718328845191,3.0,3464.8,3463.3,1.59802962]
[1718328847090,2.81438917,3464.7,3463.3,0.10685053]
[1718328847294,1.43344514,3464.7,3463.3,0.10685053]
[1718328847494,1.56285063,3464.6,3463.4,0.05774066]
[1718328847697,2.99629577,3464.6,3463.4,0.05774066]
[1718328847892,2.99629577,3464.6,3463.5,0.10663544]
[1718328849222,1.56285063,3464.6,3463.6,0.05773876]
[1718328849380,3.0,3464.8,3463.6,0.16433708]
[1718328850216,3.0,3464.8,3463.7,0.05773399]
[1718328850421,3.0,3464.8,3463.7,0.16429519]
[1718328850723,3.0,3464.8,3463.8,0.057734]
[1718328851429,3.0,3464.8,3463.3,0.05773401]
[1718328851639,1.0278,3464.7,3463.9,0.10648695]
[1718328851793,1.0278,3464.7,3463.5,0.05773401]
[1718328852123,1.43344514,3464.6,3462.8,2.4057]
[1718328852324,5.81497098,3464.6,3463.6,0.10310523]
[1718328852530,5.81497098,3464.6,3462.8,2.4057]
[1718328852531,1.46788035,3464.5,3462.8,2.4057]
[1718328852711,1.43344514,3464.4,3462.8,3.83914514]
[1718328853026,1.43344514,3464.4,3462.9,0.16090235]
[1718328853223,4.43344514,3464.4,3462.9,0.16090235]
[1718328853421,4.43344514,3464.4,3462.9,0.10316016]
[1718328853587,5.33005769,3464.4,3463.0,0.39423053]
[1718328853791,2.33005769,3464.4,3463.1,0.0577422]
[1718328854019,2.33005769,3464.4,3463.1,0.16082808]
[1718328854421,2.33005769,3464.4,3463.1,0.10308588]
[1718328855123,2.33005769,3464.4,3462.8,2.4057]
[1718328855124,2.587,3464.3,3462.8,2.4057]
[1718328855353,2.11321663,3464.2,3463.2,0.10304875]
[1718328855494,5.11321663,3464.2,3462.8,2.4057]
[1718328855693,5.11321663,3464.2,3463.3,0.10301161]
[1718328855894,5.11321663,3464.2,3462.8,2.4057]
[1718328856393,5.11321663,3464.2,3462.9,0.10316016]
[1718328856597,1.11624784,3464.1,3462.8,2.4057]
[1718328856793,1.43344514,3464.0,3462.8,2.4057]
[1718328857299,4.43344514,3464.0,3462.9,0.10316016]
[1718328857609,4.43344514,3464.0,3462.8,2.4057]
[1718328858606,5.61756847,3464.0,3462.8,2.4057]
[1718328858945,1.13775698,3463.9,3462.8,2.4057]
[1718328859146,1.43344514,3463.8,3462.8,2.4057]
[1718328859316,4.43344514,3463.8,3462.8,2.4057]
[1718328860532,3.0,3463.8,3462.9,0.05775418]
[1718328860743,4.18412333,3464.0,3463.0,0.24634542]
[1718328860918,3.0,3464.0,3462.8,2.4057]
[1718328861233,5.30037117,3464.1,3462.8,2.4057]
[1718328861420,6.73381631,3464.1,3462.8,2.4057]
[1718328861739,5.61756847,3464.1,3462.8,2.4057]
[1718328863032,1.18412333,3464.0,3462.8,2.4057]
[1718328863232,3.0,3464.0,3462.9,0.05774798]
[1718328863598,1.43344514,3464.1,3462.9,0.05774798]
[1718328863801,2.21333734,3464.1,3462.9,0.30409278]
[1718328864026,6.39746067,3464.1,3462.9,0.30409278]
[1718328864532,5.21333734,3464.1,3462.9,0.30409278]
[1718328865350,8.46212333,3464.5,3463.1,2.3146]
[1718328865543,7.278,3464.5,3463.2,0.05773863]
[1718328865723,7.278,3464.5,3463.3,0.05773864]
[1718328866044,7.278,3464.5,3463.4,0.10365787]
[1718328866341,7.278,3464.5,3463.5,0.05773865]
[1718328866648,1.18412333,3464.8,3463.6,0.10358361]
[1718328866849,1.43344514,3464.7,3463.6,0.10358361]
[1718328867006,3.75728352,3464.7,3463.6,0.10358361]
[1718328867205,2.57316019,3464.7,3463.6,0.10358361]
[1718328867908,3.75728352,3464.7,3463.6,0.10358361]
[1718328868311,2.037,3464.3,3463.1,2.3146]
[1718328868533,1.43344514,3464.2,3463.7,0.10354649]
[1718328868846,1.18412333,3464.3,3463.2,0.05774646]
[1718328869142,3.0,3464.4,3463.1,2.3146]
[1718328869349,1.18412333,3464.5,3463.3,0.10354474]
[1718328869552,1.43344514,3464.5,3463.2,0.16132379]
[1718328869773,1.43344514,3464.5,3463.1,2.3146]
[1718328870061,0.67572835,3464.4,3463.2,0.33504187]
[1718328870410,0.67572835,3464.4,3463.2,0.10358187]
[1718328870726,2.61756847,3464.3,3463.2,0.10358187]
[1718328871061,1.18412333,3464.2,3463.1,2.3146]
[1718328871357,2.61756847,3464.2,3463.1,2.3146]
[1718328871652,1.43344514,3464.2,3463.2,0.10362549]
[1718328871865,1.43344514,3464.2,3463.2,0.34544804]
[1718328872047,1.18412333,3464.5,3463.3,0.05774616]
[1718328872253,1.43344514,3464.5,3463.3,0.16133452]
[1718328872420,1.43344514,3464.5,3463.4,0.27177571]
[1718328873245,1.18412333,3464.6,3463.5,2.46914017]
[1718328873418,7.278,3464.9,3463.5,2.46914017]
[1718328873419,8.46212333,3464.9,3463.5,2.46914017]
[1718328873620,7.278,3464.9,3463.6,0.10348182]
[1718328873889,7.278,3464.9,3463.7,0.34217192]
[1718328874097,7.278,3464.9,3463.8,0.05773216]
[1718328874225,7.278,3464.9,3463.8,0.16113973]
[1718328874961,1.18412333,3465.0,3463.9,2.4114]
[1718328875271,7.278,3465.3,3464.0,0.16055102]
[1718328875567,1.18412333,3465.6,3464.1,0.2571951]
[1718328875740,1.18412333,3465.6,3464.0,0.16055102]
[1718328875741,1.43344514,3465.5,3464.2,2.48582584]
[1718328875940,1.43344514,3465.5,3464.3,0.05772584]
[1718328876737,4.43344514,3465.5,3464.3,0.05772584]
[1718328877069,1.18412333,3465.6,3464.4,0.05772586]
[1718328877424,1.18412333,3465.6,3464.5,0.10225613]
[1718328877622,1.18412333,3465.6,3464.6,0.0577197]
[1718328877844,8.46212333,3465.7,3464.6,0.15993872]
[1718328878036,9.51259667,3465.7,3464.6,0.0577197]
[1718328878243,1.18412333,3465.9,3464.7,2.3915]
[1718328878470,1.18412333,3465.9,3464.8,0.05771774]
[1718328878471,4.43344514,3465.9,3464.8,0.05771774]
[1718328878826,1.43344514,3465.9,3464.8,0.05771774]
[1718328881751,1.43344514,3465.9,3464.7,2.3915]
[1718328882563,1.43344514,3465.9,3464.8,0.05771704]
[1718328882859,1.43344514,3465.9,3464.9,0.2449217]
[1718328883261,2.037,3465.6,3464.7,2.3915]
[1718328883583,1.43344514,3465.6,3464.7,2.3915]
[1718328886464,3.0,3466.0,3464.8,0.05771791]
[1718328886786,1.43344514,3465.9,3464.9,0.24492179]
[1718328887147,1.43344514,3465.9,3464.7,2.3915]
[1718328887463,1.43344514,3465.9,3464.8,0.15919872]
[1718328887643,1.43344514,3465.9,3464.8,0.05771754]
[1718328888879,1.43344514,3465.9,3464.7,2.3915]
[1718328889193,1.43344514,3465.9,3464.9,0.10144408]
[1718328889478,1.17114451,3465.8,3464.7,2.3915]
[1718328889668,1.17114451,3465.8,3465.0,0.10140699]
[1718328889980,1.17114451,3465.8,3464.7,2.3915]
[1718328890346,1.17114451,3465.8,3464.8,0.15919871]
[1718328890546,1.43344514,3465.9,3464.9,0.25506987]
[1718328893292,3.0,3466.0,3465.0,0.05771698]
[1718328894196,7.278,3466.1,3465.0,0.05771698]
[1718328894504,12.315,3466.5,3465.0,0.05771698]
[1718328894708,1.43344514,3466.4,3465.0,0.05771698]
[1718328894856,4.43344514,3466.4,3465.0,0.05771698]
[1718328896073,4.43344514,3466.4,3465.1,2.2892]
[1718328896269,4.43344514,3466.4,3465.2,0.05771037]
[1718328899073,4.43344514,3466.4,3465.1,2.2892]
[1718328899279,4.44614451,3466.3,3465.1,2.2892]
[1718328899504,1.43344514,3466.2,3465.1,2.2892]
[1718328905472,2.037,3466.0,3465.1,2.2892]
[1718328905769,1.43344514,3465.9,3465.1,2.2892]
[1718328911097,3.0,3466.1,3465.1,2.2892]
[1718328911305,1.43344514,3466.1,3465.1,2.2892]
[1718328911548,5.7792612,3466.1,3465.1,2.2892]
[1718328911717,1.43344514,3466.0,3465.1,2.2892]
[1718328912028,4.43344514,3466.0,3465.1,2.2892]
[1718328915434,1.1996225,3465.9,3465.1,2.2892]
[1718328915643,1.43344514,3465.8,3464.7,2.498]
[1718328915962,1.43344514,3465.8,3464.8,0.10138914]
[1718328915963,5.63306764,3465.8,3464.8,0.10138914]
[1718328916105,4.43344514,3465.8,3464.8,0.10138914]
[1718328916312,1.43344514,3465.8,3464.7,2.498]
[1718328916529,1.43344514,3465.8,3464.8,0.35118914]
[1718328916865,1.1996225,3466.3,3464.9,2.2854]
[1718328917023,1.43344514,3466.4,3464.9,2.34311821]
[1718328917232,7.278,3466.5,3465.1,2.2854]
[1718328917543,7.278,3466.5,3465.5,2.2854]
[1718328917737,1.49925337,3466.9,3465.7,2.2597]
[1718328917738,7.278,3466.9,3465.7,2.2597]
[1718328918067,7.278,3466.9,3465.9,2.2597]
[1718328918227,1.1996225,3467.4,3465.6,0.70308445]
[1718328918228,1.1996225,3467.2,3466.1,2.3872]
[1718328918434,7.278,3467.3,3466.2,2.44488981]
[1718328918646,7.278,3467.3,3466.4,2.3872]
[1718328918852,7.278,3467.3,3466.5,0.0576866]
[1718328919057,7.278,3467.3,3466.5,0.15827105]
[1718328919350,7.278,3467.3,3466.5,0.15827256]
[1718328919534,7.278,3467.3,3466.5,0.41281982]
[1718328919730,1.1996225,3467.6,3466.5,0.41281982]
[1718328919931,1.1996225,3467.7,3466.5,1.78857685]
[1718328920130,8.4776225,3467.8,3466.7,2.2747]
[1718328920333,7.278,3467.8,3466.8,0.05768047]
[1718328920551,1.49925337,3468.1,3466.9,0.24329279]
[1718328920552,1.1996225,3468.0,3466.9,0.24329279]
[1718328921050,1.1996225,3468.0,3467.0,0.05768047]
[1718328921258,1.1996225,3468.1,3467.0,0.05768047]
[1718328921541,1.1996225,3468.1,3467.1,2.3529]
[1718328921542,1.43344514,3468.1,3467.1,2.3529]
[1718328922008,1.43344514,3468.0,3467.1,2.3529]
[1718328922367,1.43344514,3468.0,3466.0,0.22597]
[1718328922368,1.1996225,3467.8,3466.4,2.2774]
[1718328922657,1.1996225,3467.6,3466.4,2.2774]
[1718328922947,1.43344514,3467.7,3466.4,2.2774]
[1718328923157,4.43344514,3467.7,3466.5,0.05768664]
[1718328923450,3.54309632,3468.1,3466.4,2.2774]
[1718328923451,8.4776225,3468.2,3466.7,2.27]
[1718328923633,7.278,3468.2,3466.9,2.27]
[1718328923942,1.43344514,3468.1,3467.0,0.09966357]
[1718328924338,1.43344514,3468.1,3466.9,2.27]
[1718328924511,2.43280676,3468.0,3466.9,2.27]
[1718328924939,3.8662519,3468.0,3466.9,2.27]
[1718328925109,1.43344514,3467.9,3466.9,2.27]
[1718328925310,1.43344514,3467.9,3466.3,2.2839]
[1718328925311,3.47044514,3467.9,3466.3,2.2839]
[1718328925515,1.1996225,3467.8,3466.4,0.09857939]
[1718328925717,2.037,3467.5,3466.3,2.2839]
[1718328925936,1.43344514,3467.4,3466.3,2.2839]
[1718328927111,2.037,3467.5,3466.3,2.2839]
[1718328927314,3.0,3467.6,3466.4,0.05768877]
[1718328927542,4.43344514,3467.6,3466.4,0.05768877]
[1718328927744,1.43344514,3467.6,3466.5,0.23415888]
[1718328927946,1.43344514,3467.6,3466.6,0.0987713]
[1718328928349,1.43344514,3467.6,3466.5,0.23415888]
[1718328928519,3.0,3468.0,3466.6,0.05768873]
[1718328928715,3.0,3468.0,3466.7,0.09873424]
[1718328928949,3.0,3468.1,3466.8,0.3396489]
[1718328929127,7.278,3468.2,3467.0,2.3286]
[1718328929328,7.278,3468.2,3467.2,2.3286]
[1718328929512,7.278,3468.2,3467.4,2.3286]
[1718328929713,7.278,3468.2,3467.5,0.09843784]
[1718328929913,12.38,3468.8,3467.6,0.24270378]
[1718328929914,7.278,3468.6,3467.6,0.24270378]